[Event "Titled Tuesday Blitz July 11 Late 2023"]
[White "Maksimovic, Bojan"]
[Black "Flynn, Jacob"]
[WhiteFideId "14408120"]
[BlackFideId "2509393"]
[WhiteElo "2841"]
[BlackElo "2451"]
[Result "1-0"]
[Round "2"]
[TimeControl "180+2"]
[Date "2023.07.11"]
[WhiteClock "0:02:04"]
[BlackClock "0:02:01"]
[Board "94"]

1. Nf3 {[%clk 0:03:00]}  d5 {[%clk 0:02:59]} 2. g3 {[%clk 0:02:57]}  c5 {[%clk 0:02:59]} 3. Bg2 {[%clk 0:02:57]}  Nc6 {[%clk 0:03:00]} 4. O-O {[%clk 0:02:58]}  Nf6 {[%clk 0:02:59]} 5. d3 {[%clk 0:02:58]}  e5 {[%clk 0:02:58]} 6. Nbd2 {[%clk 0:02:59]}  Be7 {[%clk 0:02:58]} 7. e4 {[%clk 0:03:00]}  d4 {[%clk 0:02:56]} 8. Nc4 {[%clk 0:02:59]}  Nd7 {[%clk 0:02:54]} 9. a4 {[%clk 0:02:59]}  h5 {[%clk 0:02:53]} 10. h4 {[%clk 0:02:56]}  Qc7 {[%clk 0:02:47]} 11. c3 {[%clk 0:02:56]}  Nf8 {[%clk 0:02:45]} 12. cxd4 {[%clk 0:02:54]}  cxd4 {[%clk 0:02:45]} 13. Bd2 {[%clk 0:02:52]}  Be6 {[%clk 0:02:43]} 14. Rc1 {[%clk 0:02:52]}  Ng6 {[%clk 0:02:41]} 15. b4 {[%clk 0:02:50]}  Qb8 {[%clk 0:02:27]} 16. b5 {[%clk 0:02:48]}  Nd8 {[%clk 0:02:28]} 17. Ng5 {[%clk 0:02:20]}  Bxg5 {[%clk 0:02:26]} 18. Bxg5 {[%clk 0:02:20]}  f6 {[%clk 0:02:26]} 19. Bd2 {[%clk 0:02:20]}  Bg4 {[%clk 0:02:25]} 20. Qb3 {[%clk 0:02:17]}  Be6 {[%clk 0:02:21]} 21. Bb4 {[%clk 0:02:16]}  Kf7 {[%clk 0:02:20]} 22. Qa3 {[%clk 0:02:12]}  Bxc4 {[%clk 0:02:13]} 23. Rxc4 {[%clk 0:02:13]}  Ne6 {[%clk 0:02:12]} 24. Bh3 {[%clk 0:02:12]}  Rc8 {[%clk 0:02:09]} 25. Rxc8 {[%clk 0:02:04]}  Qxc8 {[%clk 0:02:09]} 26. Rc1 {[%clk 0:02:05]}  Qd8 {[%clk 0:02:06]} 27. Qb3 {[%clk 0:02:04]}  Qd7 {[%clk 0:02:01]} 28. Bxe6+ {[%clk 0:02:04]} 1-0


[Site "https://www.chess.com"]

[Event "Titled Tuesday Blitz July 11 Late 2023"]
[White "JERO-8914"]
[Black "carokannlover213"]
[WhiteElo "2468"]
[BlackElo "2786"]
[Result "0-1"]
[Round "2"]
[TimeControl "180+2"]
[Date "2023.07.11"]
[WhiteClock "0:00:15"]
[BlackClock "0:00:13"]
[Board "95"]

1. c4 {[%clk 0:03:00]}  e6 {[%clk 0:03:00]} 2. d4 {[%clk 0:02:59]}  Nf6 {[%clk 0:03:01]} 3. Nf3 {[%clk 0:02:58]}  d5 {[%clk 0:03:01]} 4. g3 {[%clk 0:02:57]}  dxc4 {[%clk 0:03:00]} 5. Bg2 {[%clk 0:02:55]}  Bd7 {[%clk 0:03:00]} 6. Ne5 {[%clk 0:02:55]}  Bc6 {[%clk 0:03:01]} 7. Nxc6 {[%clk 0:02:55]}  Nxc6 {[%clk 0:03:02]} 8. e3 {[%clk 0:02:53]}  Qd7 {[%clk 0:03:01]} 9. O-O {[%clk 0:02:53]}  O-O-O {[%clk 0:03:01]} 10. Qa4 {[%clk 0:02:52]}  Nd5 {[%clk 0:03:01]} 11. Qxc4 {[%clk 0:02:51]}  h5 {[%clk 0:03:01]} 12. h4 {[%clk 0:02:42]}  f6 {[%clk 0:03:01]} 13. Nc3 {[%clk 0:02:40]}  g5 {[%clk 0:02:58]} 14. hxg5 {[%clk 0:02:39]}  fxg5 {[%clk 0:02:59]} 15. e4 {[%clk 0:02:36]}  Nb6 {[%clk 0:02:56]} 16. Qd3 {[%clk 0:02:32]}  Nxd4 {[%clk 0:02:42]} 17. Bxg5 {[%clk 0:02:31]}  Be7 {[%clk 0:02:42]} 18. Bxe7 {[%clk 0:02:31]}  Qxe7 {[%clk 0:02:43]} 19. e5 {[%clk 0:02:27]}  h4 {[%clk 0:02:42]} 20. Qe4 {[%clk 0:02:23]}  c6 {[%clk 0:02:25]} 21. Rad1 {[%clk 0:02:16]}  h3 {[%clk 0:01:38]} 22. Rxd4 {[%clk 0:02:05]}  Rxd4 {[%clk 0:01:39]} 23. Qxd4 {[%clk 0:02:05]}  hxg2 {[%clk 0:01:40]} 24. Kxg2 {[%clk 0:02:04]}  Qh7 {[%clk 0:01:40]} 25. Qg4 {[%clk 0:01:55]}  Qh2+ {[%clk 0:01:39]} 26. Kf3 {[%clk 0:01:56]}  Rf8+ {[%clk 0:01:39]} 27. Ke2 {[%clk 0:01:54]}  Kb8 {[%clk 0:01:21]} 28. Qxe6 {[%clk 0:01:49]}  Qh5+ {[%clk 0:01:20]} 29. g4 {[%clk 0:01:44]}  Qh8 {[%clk 0:01:05]} 30. Qd6+ {[%clk 0:01:36]}  Ka8 {[%clk 0:01:04]} 31. Rh1 {[%clk 0:01:35]}  Qg8 {[%clk 0:01:00]} 32. f3 {[%clk 0:01:24]}  Rd8 {[%clk 0:00:51]} 33. Qb4 {[%clk 0:01:20]}  Qg5 {[%clk 0:00:49]} 34. Rd1 {[%clk 0:01:09]}  Qxe5+ {[%clk 0:00:48]} 35. Qe4 {[%clk 0:01:09]}  Qh2+ {[%clk 0:00:49]} 36. Ke3 {[%clk 0:01:04]}  Qh6+ {[%clk 0:00:45]} 37. Ke2 {[%clk 0:01:01]}  Qh2+ {[%clk 0:00:45]} 38. Ke3 {[%clk 0:01:01]}  Rf8 {[%clk 0:00:46]} 39. Rd2 {[%clk 0:00:51]}  Qg1+ {[%clk 0:00:33]} 40. Kd3 {[%clk 0:00:51]}  Qc1 {[%clk 0:00:28]} 41. Ke2 {[%clk 0:00:43]}  Rh8 {[%clk 0:00:21]} 42. Qf4 {[%clk 0:00:40]}  Re8+ {[%clk 0:00:19]} 43. Kf2 {[%clk 0:00:39]}  Qe1+ {[%clk 0:00:17]} 44. Kg2 {[%clk 0:00:39]}  Nc4 {[%clk 0:00:17]} 45. Rd4 {[%clk 0:00:23]}  Ne3+ {[%clk 0:00:16]} 46. Kh2 {[%clk 0:00:16]}  Qf2+ {[%clk 0:00:14]} 47. Kh1 {[%clk 0:00:15]}  Qg2# {[%clk 0:00:13]} 0-1


[Site "https://www.chess.com"]

[Event "Titled Tuesday Blitz July 11 Late 2023"]
[White "Prydun, Andriy"]
[Black "Skliarov, Viktor"]
[WhiteFideId "14145898"]
[BlackFideId "14106736"]
[WhiteElo "2378"]
[BlackElo "2628"]
[Result "0-1"]
[Round "2"]
[TimeControl "180+2"]
[Date "2023.07.11"]
[WhiteClock "0:00:00"]
[BlackClock "0:00:17"]
[Board "99"]

1. d4 {[%clk 0:03:00]}  Nf6 {[%clk 0:03:00]} 2. Nd2 {[%clk 0:02:58]}  c5 {[%clk 0:02:57]} 3. dxc5 {[%clk 0:02:59]}  Qa5 {[%clk 0:02:54]} 4. a3 {[%clk 0:02:58]}  Qxc5 {[%clk 0:02:53]} 5. c4 {[%clk 0:02:59]}  a5 {[%clk 0:02:52]} 6. e3 {[%clk 0:02:57]}  b6 {[%clk 0:02:52]} 7. Be2 {[%clk 0:02:55]}  Bb7 {[%clk 0:02:51]} 8. Bf3 {[%clk 0:02:55]}  Nc6 {[%clk 0:02:43]} 9. Ne2 {[%clk 0:02:54]}  e6 {[%clk 0:02:43]} 10. O-O {[%clk 0:02:50]}  Be7 {[%clk 0:02:42]} 11. Nc3 {[%clk 0:02:50]}  O-O {[%clk 0:02:40]} 12. b3 {[%clk 0:02:51]}  d5 {[%clk 0:02:37]} 13. Bb2 {[%clk 0:02:48]}  dxc4 {[%clk 0:02:24]} 14. Nxc4 {[%clk 0:02:44]}  b5 {[%clk 0:02:21]} 15. Nd2 {[%clk 0:02:43]}  Rfd8 {[%clk 0:02:13]} 16. Qe2 {[%clk 0:02:42]}  b4 {[%clk 0:02:09]} 17. Nce4 {[%clk 0:02:41]}  Nxe4 {[%clk 0:02:02]} 18. Nxe4 {[%clk 0:02:42]}  Qb6 {[%clk 0:01:58]} 19. Rfc1 {[%clk 0:02:41]}  bxa3 {[%clk 0:01:45]} 20. Bxa3 {[%clk 0:02:40]}  Bxa3 {[%clk 0:01:45]} 21. Rxa3 {[%clk 0:02:40]}  Ne5 {[%clk 0:01:45]} 22. Nd2 {[%clk 0:00:58]}  Rxd2 {[%clk 0:01:22]} 23. Qxd2 {[%clk 0:00:59]}  Bxf3 {[%clk 0:01:22]} 24. Qd4 {[%clk 0:00:56]}  Qb8 {[%clk 0:01:03]} 25. Rc5 {[%clk 0:00:03]}  Bd5 {[%clk 0:00:51]} 26. e4 {[%clk 0:00:02]}  Nc6 {[%clk 0:00:31]} 27. Qc3 {[%clk 0:00:02]}  Bxe4 {[%clk 0:00:28]} 28. Rxc6 {[%clk 0:00:02]}  Bxc6 {[%clk 0:00:27]} 29. Qxc6 {[%clk 0:00:03]}  h6 {[%clk 0:00:27]} 30. h3 {[%clk 0:00:02]}  Ra7 {[%clk 0:00:25]} 31. b4 {[%clk 0:00:02]}  axb4 {[%clk 0:00:19]} 32. Rxa7 {[%clk 0:00:02]}  Qxa7 {[%clk 0:00:19]} 33. Qe8+ {[%clk 0:00:02]}  Kh7 {[%clk 0:00:19]} 34. Qb5 {[%clk 0:00:03]}  Qd4 {[%clk 0:00:19]} 35. Qc6 {[%clk 0:00:02]}  Qd1+ {[%clk 0:00:18]} 36. Kh2 {[%clk 0:00:02]}  Qd5 {[%clk 0:00:19]} 37. Qc7 {[%clk 0:00:02]}  f5 {[%clk 0:00:18]} 38. Qf7 {[%clk 0:00:01]}  b3 {[%clk 0:00:17]} 39. f3 {[%clk 0:00:00]}  Qe5+ {[%clk 0:00:17]} 0-1


[Site "https://www.chess.com"]

[Event "Titled Tuesday Blitz July 11 Late 2023"]
[White "Ehlvest, Jaan"]
[Black "Andreassen, Lars"]
[WhiteFideId "4500016"]
[BlackFideId "1504878"]
[WhiteElo "2624"]
[BlackElo "2367"]
[Result "0-1"]
[Round "2"]
[TimeControl "180+2"]
[Date "2023.07.11"]
[WhiteClock "0:00:00"]
[BlackClock "0:00:07"]
[Board "100"]

1. e4 {[%clk 0:02:55]}  d6 {[%clk 0:02:55]} 2. d4 {[%clk 0:02:54]}  Nf6 {[%clk 0:02:56]} 3. Nc3 {[%clk 0:02:53]}  e5 {[%clk 0:02:56]} 4. Nf3 {[%clk 0:02:53]}  Nbd7 {[%clk 0:02:53]} 5. Bc4 {[%clk 0:02:54]}  Be7 {[%clk 0:02:46]} 6. O-O {[%clk 0:02:52]}  O-O {[%clk 0:02:46]} 7. a4 {[%clk 0:02:50]}  c6 {[%clk 0:02:46]} 8. Re1 {[%clk 0:02:48]}  Qc7 {[%clk 0:02:44]} 9. h3 {[%clk 0:02:45]}  Re8 {[%clk 0:02:44]} 10. Ba2 {[%clk 0:02:41]}  h6 {[%clk 0:02:42]} 11. Bb3 {[%clk 0:02:42]}  b6 {[%clk 0:02:33]} 12. Nh4 {[%clk 0:02:36]}  exd4 {[%clk 0:02:30]} 13. Qxd4 {[%clk 0:02:35]}  Nc5 {[%clk 0:02:20]} 14. Ba2 {[%clk 0:02:35]}  Be6 {[%clk 0:02:19]} 15. Be3 {[%clk 0:02:31]}  Bxa2 {[%clk 0:02:15]} 16. Rxa2 {[%clk 0:02:31]}  Ne6 {[%clk 0:02:12]} 17. Qd3 {[%clk 0:02:29]}  Rad8 {[%clk 0:02:09]} 18. Nf5 {[%clk 0:02:28]}  Bf8 {[%clk 0:02:06]} 19. Raa1 {[%clk 0:02:27]}  d5 {[%clk 0:02:06]} 20. exd5 {[%clk 0:02:16]}  Nxd5 {[%clk 0:02:01]} 21. Nxd5 {[%clk 0:02:15]}  Rxd5 {[%clk 0:02:01]} 22. Qe4 {[%clk 0:02:15]}  Red8 {[%clk 0:01:51]} 23. c4 {[%clk 0:02:07]}  R5d7 {[%clk 0:01:49]} 24. Qg4 {[%clk 0:01:56]}  Kh7 {[%clk 0:01:47]} 25. Rad1 {[%clk 0:01:26]}  g6 {[%clk 0:01:41]} 26. Ng3 {[%clk 0:01:20]}  Bg7 {[%clk 0:01:24]} 27. Rxd7 {[%clk 0:01:18]}  Qxd7 {[%clk 0:01:24]} 28. b4 {[%clk 0:01:12]}  Bc3 {[%clk 0:01:16]} 29. Ne4 {[%clk 0:01:08]}  f5 {[%clk 0:01:10]} 30. Qh4 {[%clk 0:01:07]}  fxe4 {[%clk 0:01:09]} 31. Qxh6+ {[%clk 0:01:06]}  Kg8 {[%clk 0:01:08]} 32. Qxg6+ {[%clk 0:01:06]}  Ng7 {[%clk 0:01:04]} 33. Rc1 {[%clk 0:01:04]}  Bd4 {[%clk 0:00:59]} 34. Qxe4 {[%clk 0:01:01]}  c5 {[%clk 0:00:55]} 35. Rd1 {[%clk 0:00:58]}  Qxa4 {[%clk 0:00:45]} 36. Rd2 {[%clk 0:00:52]}  Qd7 {[%clk 0:00:45]} 37. bxc5 {[%clk 0:00:50]}  bxc5 {[%clk 0:00:43]} 38. Bxd4 {[%clk 0:00:46]}  cxd4 {[%clk 0:00:43]} 39. c5 {[%clk 0:00:46]}  d3 {[%clk 0:00:43]} 40. c6 {[%clk 0:00:44]}  Qc7 {[%clk 0:00:43]} 41. Qc4+ {[%clk 0:00:40]}  Kh8 {[%clk 0:00:40]} 42. Qh4+ {[%clk 0:00:38]}  Kg8 {[%clk 0:00:39]} 43. Qc4+ {[%clk 0:00:38]}  Kf8 {[%clk 0:00:31]} 44. h4 {[%clk 0:00:33]}  Rd6 {[%clk 0:00:26]} 45. Qf4+ {[%clk 0:00:24]}  Kg8 {[%clk 0:00:22]} 46. Rxd3 {[%clk 0:00:24]}  Rxc6 {[%clk 0:00:20]} 47. Qxc7 {[%clk 0:00:13]}  Rxc7 {[%clk 0:00:21]} 48. Rd4 {[%clk 0:00:13]}  Ne6 {[%clk 0:00:20]} 49. Rd5 {[%clk 0:00:14]}  Kf7 {[%clk 0:00:18]} 50. g3 {[%clk 0:00:14]}  a6 {[%clk 0:00:17]} 51. Ra5 {[%clk 0:00:13]}  Ra7 {[%clk 0:00:18]} 52. Kg2 {[%clk 0:00:14]}  Nd4 {[%clk 0:00:17]} 53. g4 {[%clk 0:00:13]}  Nc6 {[%clk 0:00:18]} 54. Rf5+ {[%clk 0:00:12]}  Ke6 {[%clk 0:00:18]} 55. h5 {[%clk 0:00:11]}  a5 {[%clk 0:00:18]} 56. Rc5 {[%clk 0:00:11]}  Kd6 {[%clk 0:00:17]} 57. Rc1 {[%clk 0:00:09]}  a4 {[%clk 0:00:18]} 58. g5 {[%clk 0:00:09]}  a3 {[%clk 0:00:18]} 59. h6 {[%clk 0:00:09]}  a2 {[%clk 0:00:18]} 60. Ra1 {[%clk 0:00:08]}  Nb4 {[%clk 0:00:16]} 61. g6 {[%clk 0:00:08]}  Nc2 {[%clk 0:00:14]} 62. h7 {[%clk 0:00:08]}  Nxa1 {[%clk 0:00:14]} 63. h8=Q {[%clk 0:00:07]}  Nb3 {[%clk 0:00:14]} 64. Qf8+ {[%clk 0:00:06]}  Kc6 {[%clk 0:00:13]} 65. Qf6+ {[%clk 0:00:05]}  Kb5 {[%clk 0:00:13]} 66. Qe5+ {[%clk 0:00:02]}  Nc5 {[%clk 0:00:12]} 67. Qb8+ {[%clk 0:00:01]}  Rb7 {[%clk 0:00:12]} 68. Qa8 {[%clk 0:00:00]}  Rb6 {[%clk 0:00:07]} 0-1


[Site "https://www.chess.com"]

[Event "Titled Tuesday Blitz July 11 Late 2023"]
[White "AndresDelgado77"]
[Black "Vovk, Orest"]
[BlackFideId "14113490"]
[WhiteElo "2316"]
[BlackElo "2517"]
[Result "0-1"]
[Round "2"]
[TimeControl "180+2"]
[Date "2023.07.11"]
[WhiteClock "0:00:00"]
[BlackClock "0:00:12"]
[Board "104"]

1. e4 {[%clk 0:03:00]}  g5 {[%clk 0:02:59]} 2. d4 {[%clk 0:02:59]}  g4 {[%clk 0:02:59]} 3. Be2 {[%clk 0:02:40]}  h5 {[%clk 0:02:58]} 4. h3 {[%clk 0:02:37]}  d5 {[%clk 0:02:55]} 5. e5 {[%clk 0:02:31]}  c5 {[%clk 0:02:46]} 6. c3 {[%clk 0:02:21]}  Nc6 {[%clk 0:02:44]} 7. hxg4 {[%clk 0:02:20]}  Qb6 {[%clk 0:02:44]} 8. dxc5 {[%clk 0:02:03]}  Qxc5 {[%clk 0:02:40]} 9. Be3 {[%clk 0:02:04]}  Qa5 {[%clk 0:02:39]} 10. Rxh5 {[%clk 0:01:56]}  Rxh5 {[%clk 0:02:37]} 11. gxh5 {[%clk 0:01:56]}  Nxe5 {[%clk 0:02:33]} 12. Nf3 {[%clk 0:01:50]}  Ng4 {[%clk 0:02:27]} 13. Bd4 {[%clk 0:01:38]}  N8h6 {[%clk 0:02:20]} 14. Ne5 {[%clk 0:01:25]}  Nxe5 {[%clk 0:02:10]} 15. Bxe5 {[%clk 0:01:25]}  f6 {[%clk 0:02:01]} 16. b4 {[%clk 0:01:17]}  Qd8 {[%clk 0:01:54]} 17. Bf4 {[%clk 0:01:10]}  e5 {[%clk 0:01:48]} 18. Bxh6 {[%clk 0:00:46]}  Bxh6 {[%clk 0:01:49]} 19. Bb5+ {[%clk 0:00:46]}  Kf7 {[%clk 0:01:45]} 20. c4 {[%clk 0:00:36]}  Be6 {[%clk 0:01:31]} 21. cxd5 {[%clk 0:00:31]}  Qxd5 {[%clk 0:01:23]} 22. Qxd5 {[%clk 0:00:27]}  Bxd5 {[%clk 0:01:23]} 23. f3 {[%clk 0:00:25]}  Rc8 {[%clk 0:01:06]} 24. Nd2 {[%clk 0:00:24]}  Rc2 {[%clk 0:01:02]} 25. Nb3 {[%clk 0:00:10]}  Rxg2 {[%clk 0:00:54]} 26. Rd1 {[%clk 0:00:09]}  Bxf3 {[%clk 0:00:51]} 27. Rd7+ {[%clk 0:00:07]}  Ke6 {[%clk 0:00:51]} 28. Nc5+ {[%clk 0:00:05]}  Kf5 {[%clk 0:00:50]} 29. Nxb7 {[%clk 0:00:03]}  Be3 {[%clk 0:00:19]} 30. Nd6+ {[%clk 0:00:02]}  Kf4 {[%clk 0:00:15]} 31. h6 {[%clk 0:00:00]}  Rxa2 {[%clk 0:00:12]} 0-1


[Site "https://www.chess.com"]

[Event "Titled Tuesday Blitz July 11 Late 2023"]
[White "Gertler, David"]
[Black "Tang, Andrew"]
[WhiteFideId "2017377"]
[BlackFideId "2059630"]
[WhiteElo "2409"]
[BlackElo "2908"]
[Result "0-1"]
[Round "2"]
[TimeControl "180+2"]
[Date "2023.07.11"]
[WhiteClock "0:01:45"]
[BlackClock "0:02:10"]
[Board "107"]

1. e4 {[%clk 0:02:57]}  b5 {[%clk 0:02:59]} 2. d4 {[%clk 0:02:56]}  Bb7 {[%clk 0:02:59]} 3. Bd3 {[%clk 0:02:57]}  e6 {[%clk 0:02:56]} 4. Qe2 {[%clk 0:02:57]}  a6 {[%clk 0:02:55]} 5. Nf3 {[%clk 0:02:56]}  c5 {[%clk 0:02:56]} 6. c3 {[%clk 0:02:56]}  Nf6 {[%clk 0:02:51]} 7. Nbd2 {[%clk 0:02:55]}  d6 {[%clk 0:02:47]} 8. e5 {[%clk 0:02:51]}  dxe5 {[%clk 0:02:34]} 9. dxe5 {[%clk 0:02:52]}  Nd5 {[%clk 0:02:35]} 10. Ne4 {[%clk 0:02:52]}  Nd7 {[%clk 0:02:21]} 11. a4 {[%clk 0:02:44]}  c4 {[%clk 0:02:16]} 12. Bc2 {[%clk 0:02:43]}  Qc7 {[%clk 0:02:16]} 13. O-O {[%clk 0:02:41]}  Nxe5 {[%clk 0:02:10]} 14. axb5 {[%clk 0:02:22]}  axb5 {[%clk 0:02:11]} 15. b3 {[%clk 0:01:45]}  Rxa1 {[%clk 0:02:10]} 0-1


[Site "https://www.chess.com"]

[Event "Titled Tuesday Blitz July 11 Late 2023"]
[White "Kanyamarala, Trisha"]
[Black "Beerdsen, Thomas"]
[WhiteFideId "45004722"]
[BlackFideId "1030108"]
[WhiteElo "2409"]
[BlackElo "2820"]
[Result "0-1"]
[Round "2"]
[TimeControl "180+2"]
[Date "2023.07.11"]
[WhiteClock "0:02:32"]
[BlackClock "0:02:50"]
[Board "108"]

1. c4 {[%clk 0:03:00]}  b5 {[%clk 0:02:57]} 2. cxb5 {[%clk 0:02:59]}  a6 {[%clk 0:02:57]} 3. bxa6 {[%clk 0:02:58]}  Bxa6 {[%clk 0:02:58]} 4. g3 {[%clk 0:02:58]}  h5 {[%clk 0:02:58]} 5. Bg2 {[%clk 0:02:58]}  c6 {[%clk 0:02:58]} 6. Nf3 {[%clk 0:02:57]}  d5 {[%clk 0:02:57]} 7. O-O {[%clk 0:02:57]}  Nd7 {[%clk 0:02:57]} 8. d4 {[%clk 0:02:56]}  Ngf6 {[%clk 0:02:57]} 9. Nc3 {[%clk 0:02:57]}  e6 {[%clk 0:02:57]} 10. Ne5 {[%clk 0:02:57]}  h4 {[%clk 0:02:56]} 11. e4 {[%clk 0:02:56]}  hxg3 {[%clk 0:02:56]} 12. fxg3 {[%clk 0:02:56]}  Nxe5 {[%clk 0:02:56]} 13. dxe5 {[%clk 0:02:55]}  Bc5+ {[%clk 0:02:56]} 14. Kh1 {[%clk 0:02:55]}  Nh5 {[%clk 0:02:57]} 15. Rf3 {[%clk 0:02:53]}  dxe4 {[%clk 0:02:55]} 16. Qxd8+ {[%clk 0:02:39]}  Rxd8 {[%clk 0:02:56]} 17. Bg5 {[%clk 0:02:35]}  exf3 {[%clk 0:02:55]} 18. Bxf3 {[%clk 0:02:36]}  Rd3 {[%clk 0:02:53]} 19. Be4 {[%clk 0:02:35]}  Nxg3+ {[%clk 0:02:53]} 20. Kg2 {[%clk 0:02:35]}  Nxe4 {[%clk 0:02:53]} 21. Nxe4 {[%clk 0:02:35]}  Be7 {[%clk 0:02:54]} 22. Rc1 {[%clk 0:02:35]}  Bxg5 {[%clk 0:02:52]} 23. Nxg5 {[%clk 0:02:35]}  Rd2+ {[%clk 0:02:52]} 24. Kg3 {[%clk 0:02:32]}  Bb5 {[%clk 0:02:50]} 0-1


[Site "https://www.chess.com"]

[Event "Titled Tuesday Blitz July 11 Late 2023"]
[White "Bazeev, German"]
[Black "Lalanne, Pablo"]
[WhiteFideId "24119350"]
[BlackFideId "112151"]
[WhiteElo "2797"]
[BlackElo "2407"]
[Result "1-0"]
[Round "2"]
[TimeControl "180+2"]
[Date "2023.07.11"]
[WhiteClock "0:01:08"]
[BlackClock "0:00:09"]
[Board "110"]

1. d4 {[%clk 0:03:00]}  Nf6 {[%clk 0:02:59]} 2. Nf3 {[%clk 0:03:01]}  e6 {[%clk 0:02:59]} 3. c4 {[%clk 0:03:02]}  d5 {[%clk 0:02:57]} 4. g3 {[%clk 0:03:01]}  Bb4+ {[%clk 0:02:56]} 5. Bd2 {[%clk 0:03:01]}  Be7 {[%clk 0:02:56]} 6. Bg2 {[%clk 0:03:02]}  O-O {[%clk 0:02:56]} 7. O-O {[%clk 0:03:03]}  c6 {[%clk 0:02:56]} 8. Qc2 {[%clk 0:03:03]}  Nbd7 {[%clk 0:02:55]} 9. Rd1 {[%clk 0:02:50]}  b6 {[%clk 0:02:53]} 10. Bf4 {[%clk 0:02:45]}  Ba6 {[%clk 0:02:41]} 11. Nbd2 {[%clk 0:02:44]}  c5 {[%clk 0:02:36]} 12. dxc5 {[%clk 0:02:40]}  bxc5 {[%clk 0:02:29]} 13. e4 {[%clk 0:02:34]}  d4 {[%clk 0:02:21]} 14. e5 {[%clk 0:02:20]}  Nh5 {[%clk 0:02:21]} 15. Ne4 {[%clk 0:02:19]}  Nxf4 {[%clk 0:02:19]} 16. gxf4 {[%clk 0:02:20]}  Nb6 {[%clk 0:02:14]} 17. b3 {[%clk 0:02:19]}  Bb7 {[%clk 0:02:02]} 18. Nfg5 {[%clk 0:02:09]}  g6 {[%clk 0:01:43]} 19. Rd3 {[%clk 0:02:03]}  Bxg5 {[%clk 0:01:32]} 20. Nxg5 {[%clk 0:02:00]}  Bxg2 {[%clk 0:01:32]} 21. Kxg2 {[%clk 0:02:01]}  Nd7 {[%clk 0:01:24]} 22. Rh3 {[%clk 0:01:59]}  Nxe5 {[%clk 0:01:16]} 23. Nxh7 {[%clk 0:01:54]}  d3 {[%clk 0:01:00]} 24. Qd1 {[%clk 0:01:39]}  Nc6 {[%clk 0:00:44]} 25. Nxf8 {[%clk 0:01:32]}  Qxf8 {[%clk 0:00:39]} 26. Rxd3 {[%clk 0:01:33]}  Nd4 {[%clk 0:00:34]} 27. Rxd4 {[%clk 0:01:31]}  cxd4 {[%clk 0:00:34]} 28. Qxd4 {[%clk 0:01:32]}  a5 {[%clk 0:00:24]} 29. Rd1 {[%clk 0:01:31]}  a4 {[%clk 0:00:22]} 30. c5 {[%clk 0:01:32]}  axb3 {[%clk 0:00:22]} 31. axb3 {[%clk 0:01:33]}  Qc8 {[%clk 0:00:18]} 32. Qe4 {[%clk 0:01:29]}  Rb8 {[%clk 0:00:18]} 33. b4 {[%clk 0:01:29]}  Qa6 {[%clk 0:00:17]} 34. c6 {[%clk 0:01:27]}  Qa4 {[%clk 0:00:15]} 35. c7 {[%clk 0:01:24]}  Rf8 {[%clk 0:00:12]} 36. Rd8 {[%clk 0:01:21]}  Qa6 {[%clk 0:00:12]} 37. b5 {[%clk 0:01:08]}  Qb6 {[%clk 0:00:09]} 38. Rxf8+ {[%clk 0:01:08]} 1-0


[Site "https://www.chess.com"]

[Event "Titled Tuesday Blitz July 11 Late 2023"]
[White "Nikologorsky, Matfei"]
[Black "Krzyzanowski, Marcin"]
[WhiteFideId "24102474"]
[BlackFideId "1132199"]
[WhiteElo "2407"]
[BlackElo "2789"]
[Result "0-1"]
[Round "2"]
[TimeControl "180+2"]
[Date "2023.07.11"]
[WhiteClock "0:00:00"]
[BlackClock "0:00:02"]
[Board "111"]

1. e4 {[%clk 0:03:00]}  g6 {[%clk 0:02:52]} 2. d4 {[%clk 0:03:00]}  Bg7 {[%clk 0:02:51]} 3. h4 {[%clk 0:02:59]}  h6 {[%clk 0:02:49]} 4. h5 {[%clk 0:02:56]}  g5 {[%clk 0:02:46]} 5. f4 {[%clk 0:02:46]}  gxf4 {[%clk 0:02:42]} 6. Nf3 {[%clk 0:02:46]}  c5 {[%clk 0:02:38]} 7. c3 {[%clk 0:02:40]}  cxd4 {[%clk 0:02:37]} 8. cxd4 {[%clk 0:02:40]}  d5 {[%clk 0:02:24]} 9. e5 {[%clk 0:02:37]}  Nc6 {[%clk 0:02:23]} 10. Bxf4 {[%clk 0:02:28]}  Bf5 {[%clk 0:02:22]} 11. Bd3 {[%clk 0:02:21]}  Bxd3 {[%clk 0:02:14]} 12. Qxd3 {[%clk 0:02:21]}  e6 {[%clk 0:02:15]} 13. Nc3 {[%clk 0:02:15]}  a6 {[%clk 0:02:06]} 14. O-O {[%clk 0:01:53]}  Nge7 {[%clk 0:02:01]} 15. Ne2 {[%clk 0:01:36]}  Qb6 {[%clk 0:01:58]} 16. a3 {[%clk 0:01:24]}  O-O-O {[%clk 0:01:56]} 17. b4 {[%clk 0:01:24]}  Kb8 {[%clk 0:01:54]} 18. Rfb1 {[%clk 0:01:17]}  Na7 {[%clk 0:01:27]} 19. a4 {[%clk 0:01:12]}  Rc8 {[%clk 0:01:26]} 20. b5 {[%clk 0:00:38]}  Rc4 {[%clk 0:01:14]} 21. bxa6 {[%clk 0:00:36]}  Qxa6 {[%clk 0:01:15]} 22. Nd2 {[%clk 0:00:33]}  Rc6 {[%clk 0:01:10]} 23. Qe3 {[%clk 0:00:24]}  Nf5 {[%clk 0:01:08]} 24. Qf2 {[%clk 0:00:23]}  Rc2 {[%clk 0:01:05]} 25. Rb3 {[%clk 0:00:13]}  Nc6 {[%clk 0:01:00]} 26. Rab1 {[%clk 0:00:12]}  Na5 {[%clk 0:00:59]} 27. Rb5 {[%clk 0:00:13]}  Rhc8 {[%clk 0:00:50]} 28. g4 {[%clk 0:00:12]}  Ne7 {[%clk 0:00:46]} 29. Be3 {[%clk 0:00:12]}  Rf8 {[%clk 0:00:33]} 30. Nf4 {[%clk 0:00:11]}  Nec6 {[%clk 0:00:28]} 31. Nd3 {[%clk 0:00:10]}  f6 {[%clk 0:00:12]} 32. exf6 {[%clk 0:00:09]}  Bxf6 {[%clk 0:00:09]} 33. Qg3+ {[%clk 0:00:09]}  Ka7 {[%clk 0:00:09]} 34. Nc5 {[%clk 0:00:09]}  Rxc5 {[%clk 0:00:09]} 35. dxc5 {[%clk 0:00:08]}  Nd4 {[%clk 0:00:08]} 36. Qc7 {[%clk 0:00:07]}  Ndc6 {[%clk 0:00:05]} 37. Rb6 {[%clk 0:00:06]}  Qd3 {[%clk 0:00:02]} 38. Rxb7+ {[%clk 0:00:07]}  Ka8 {[%clk 0:00:03]} 39. R7b6 {[%clk 0:00:02]}  Qxe3+ {[%clk 0:00:02]} 40. Kg2 {[%clk 0:00:02]}  Qxd2+ {[%clk 0:00:03]} 41. Kh3 {[%clk 0:00:03]}  Qe3+ {[%clk 0:00:02]} 42. Kg2 {[%clk 0:00:02]}  Qe2+ {[%clk 0:00:03]} 43. Kh3 {[%clk 0:00:02]}  Qf3+ {[%clk 0:00:02]} 44. Qg3 {[%clk 0:00:03]}  Qxg3+ {[%clk 0:00:01]} 45. Kxg3 {[%clk 0:00:04]}  Be5+ {[%clk 0:00:01]} 46. Kg2 {[%clk 0:00:03]}  Ka7 {[%clk 0:00:02]} 47. R6b5 {[%clk 0:00:01]}  Bd4 {[%clk 0:00:02]} 48. Re1 {[%clk 0:00:00]}  e5 {[%clk 0:00:02]} 0-1


[Site "https://www.chess.com"]